Cogmind - Beta 15 @@@ ROGUE MODE // 2025.05.17 @ 14:32:22 Player: CanadianCogs Result: Destroyed by G-34 Mercenary with Small Laser Performance ------------- Evolutions (0) 0 Regions Visited (1) 200 Robots Destroyed (8) 40 Value Destroyed (113) 113 Prototype IDs (0) 0 Alien Tech Used (0) 0 Bonus (0) 0 TOTAL SCORE: 353 Bonus ------- None Cogmind --------- Core Integrity 0/250 Matter 78/300 Energy 98/100 System Corruption 1% Temperature Cool (6) Movement Core (50) Location -10/Materials Parts ------- > --- POWER (1) -------- (None) > --- PROPULSION (2) --- (None) > --- UTILITY (2) ------ Heat Sink > --- WEAPON (2) ------- (None) > --- INVENTORY (5) ---- Huge Storage Unit Peak State ------------ > --- POWER ------------ Light Ion Engine > --- PROPULSION ------- Aluminum Leg Aluminum Leg > --- UTILITY ---------- Small Storage Unit Seismic Detector > --- WEAPON ----------- Assault Rifle Light Assault Rifle > --- INVENTORY -------- (None) [Rating: 7] Favorites ----------- Power Light Ion Engine Engine Light Ion Engine Propulsion Aluminum Leg Leg Aluminum Leg Utility Small Storage Unit Device Sensor Array Storage Small Storage Unit Weapon Assault Rifle Ballistic Gun Assault Rifle Build | -11 -10 ------- Run | Yrd Mat Slots Evolved . | . . Power . | . . Propulsion . | . . Utility . | . . Weapon . | . . Parts Attached 10 | 7 3 Power 1 | 1 . Engine 1 | 1 . Core . | . . Reactor . | . . Propulsion 2 | 2 . Treads . | . . Leg 2 | 2 . Wheel . | . . Hover . | . . Flight . | . . Utility 5 | 2 3 Device 4 | 1 3 Storage 1 | 1 . Processor . | . . Hackware . | . . Protection . | . . Artifact . | . . Weapon 2 | 2 . Energy Gun . | . . Energy Cannon . | . . Ballistic Gun 2 | 2 . Ballistic Cannon . | . . Launcher . | . . Special Weapon . | . . Impact Weapon . | . . Slashing Weapon . | . . Piercing Weapon . | . . Special Melee Weapon . | . . Unidentified Prototypes . | . . Parts Lost 2 | . 2 Power . | . . Propulsion . | . . Utility 2 | . 2 Weapon . | . . Highest Loss Streak 1 | . 1 To Critical Strikes . | . . Average Backups . | . 1 Power . | . . Propulsion . | . . Utility . | . 1 Weapon . | . . Tool/Special . | . . Unused Backups 1 | . 1 Power . | . . Propulsion . | . . Utility 1 | . 1 Weapon . | . . Tool/Special . | . . Average Slot Usage (%) 56 | . 56 Engine 6 | . 6 Leg 12 | . 12 Device 18 | . 18 Storage 6 | . 6 Ballistic Gun 12 | . 12 Peak Build Rating 7 | 7 7 Average Rating 4 | 5 3 On Entrance 3 | . 7 Naked Turns 28 | . 28 Heaviest Build 12 | 12 12 Greatest Support 20 | 20 20 Greatest Overweight (x) 1 | 1 . Average Overweight (x) . | . . Largest Inventory Capacity 8 | 8 8 Average Capacity 6 | 7 6 Most Carried 2 | 1 2 Average Carried . | . 1 Final Capacity 8 | 8 5 Final Carried 1 | . 1 Class Distribution -------------------- 100% | Mutant Dominant Class ---------------- Mutant | -10/Materials Resources | -11 -10 ----------- Run | Yrd Mat Matter Collected 131 | 90 41 Remotely . | . . Salvage Created 196 | 44 152 Parts 16 | 5 11 Haulers Intercepted . | . . Recyclers Shooed . | . . Parts Field Recycled . | . . Retrieved Matter . | . . Parts Self-Destructed . | . . Prevented . | . . Kills | -11 -10 ------- Run | Yrd Mat Combat Hostiles Destroyed 5 | . 5 Guns 5 | . 5 Classes Destroyed 4 | 1 3 Worker 1 | . 1 Tunneler 2 | 2 . Swarmer 3 | . 3 Grunt 2 | . 2 Best Kill Streak 5 | 2 5 Combat Bots Only 4 | . 4 Max Kills in Single Turn 2 | 1 2 Gunslinging 1 | . 1 Exploded . | . . Melee . | . . Uniques/NPCs Destroyed . | . . Combat | -11 -10 -------- Run | Yrd Mat Hostile Shots Fired 77 | . 77 Missed 24 | . 24 Hits 53 | . 53 Projectile 53 | . 53 Damage Taken 572 | . 572 Core 261 | . 261 Absorbed by Shields . | . . Core Remaining (%) 100 | 100 . Volleys Fired 20 | 9 11 Largest 2 | 2 2 Hottest 40 | 40 40 Shots Fired 40 | 18 22 Gun 40 | 18 22 Cannon . | . . Launcher . | . . Special . | . . Kinetic 40 | 18 22 Thermal . | . . Explosive . | . . Electromagnetic . | . . Robot Hit Streak 9 | 6 9 Robot Miss Streak 2 | 1 2 Penetration Max . | . . Secondary Targets 2 | . 2 Max Gunslinging Chain 1 | . 1 Shots Hit Robots 27 | 13 14 Core Hits 12 | 3 9 Critical Kills . | . . Critical Parts Destroyed . | . . Critical Strikes . | . . Melee Attacks . | . . Impact . | . . Slashing . | . . Piercing . | . . Sneak Attacks . | . . Combat Hostiles . | . . Follow-up Attacks . | . . Damage Inflicted 303 | 129 174 Guns 289 | 129 160 Cannons . | . . Explosions . | . . Melee . | . . Ramming 14 | . 14 Kinetic 289 | 129 160 Thermal . | . . Explosive . | . . Electromagnetic . | . . Impact . | . . Slashing . | . . Piercing . | . . Highest Corruption 1 | . 1 Average Corruption 1 | . 1 Corruption Purged . | . . Corruption Blocked . | . . Effects 1 | . 1 Data Loss (minor) 1 | . 1 Overload Shots . | . . Overflow Damage . | . . Projectiles . | . . Explosions . | . . Melee . | . . Knockbacks . | . . Impact . | . . Kinetic . | . . Secondary . | . . Self-Inflicted Damage 5 | . 5 Shots . | . . Rammed 5 | . 5 Targets Rammed 5 | . 5 Kicked . | . . Crushed . | . . Highest Temperature 12 | . 12 Average Temperature 9 | . 9 Received Heat Transfer 270 | . 270 Siege Activations . | . . Martial Activations . | . . Shielding Activations . | . . Robots Disrupted . | . . Combat Hostiles . | . . Robots Corrupted . | . . Combat Hostiles . | . . Parts Fried . | . . Impact Corruptions . | . . Robots Melted . | . . Combat Hostiles . | . . Parts Melted . | . . Heat Transferred . | . . Parts Sabotaged . | . . Parts Stolen . | . . Parts Stripped . | . . Power Chain Reactions . | . . Alert | -11 -10 ------- Run | Yrd Mat Maximum Alert Level . | . . Low Security (%) 100 | 100 100 Level 1 . | . . Level 2 . | . . Level 3 . | . . Level 4 . | . . Level 5 . | . . High Security . | . . Max Security . | . . Peak Influence 177 | 10 177 Initial 6 | . 6 Average 77 | 1 88 Influence Increases 384 | 10 374 Destroy 0b10 Robot/C 100 | . 100 Destroy 0b10 Robot/NC 15 | 10 5 Destroy Leader 10 | . 10 Successful Hack 19 | . 19 Select Force Hacks 30 | . 30 Lose Combat Pursuer 210 | . 210 Influence Decreases 236 | . 236 Entered New Map 4 | . 4 Time Decay 212 | . 212 Lost Part 20 | . 20 Squads Dispatched 5 | . 5 Investigation 3 | . 3 Extermination . | . . Reinforcement 2 | . 2 Assault . | . . Garrison . | . . Intercept . | . . Searches Triggered . | . . Construction Impeded . | . . Haulers Reinforced . | . . Active Scanning Responses . | . . Cargo Convoy Interrupts . | . . Stealth | -11 -10 --------- Run | Yrd Mat Distress Signals 2 | . 2 Communications Jammed . | . . Distress Signals . | . . Times Spotted 33 | . 33 Peak Tracking Total 9 | . 9 Tactical Retreats 4 | . 4 Traps | -11 -10 ------- Run | Yrd Mat Traps Triggered . | . . Indirectly . | . . Trap Hack Attempts . | . . Triggered . | . . Disarmed . | . . Reprogrammed . | . . Reused . | . . Traps Extracted . | . . Installed . | . . Triggered . | . . Machines | -11 -10 ---------- Run | Yrd Mat Machines Disabled . | . . Max in Single Turn . | . . Machines Repaired . | . . Machines Dismantled . | . . Machines Sabotaged . | . . Overloaded Fab Kills . | . . Hacking | -11 -10 --------- Run | Yrd Mat Machines Accessed 5 | . 5 Terminals 4 | . 4 Fabricators . | . . Repair Stations . | . . Recycling Units 1 | . 1 Scanalyzers . | . . Garrison Access . | . . Total Hacks 16 | . 16 Successful 9 | . 9 Failed 7 | . 7 Catastrophic . | . . Database Lockouts . | . . Manual 13 | . 13 Terminals 13 | . 13 Fabricators . | . . Repair Stations . | . . Recycling Units 3 | . 3 Scanalyzers . | . . Garrison Access . | . . Terminal Hacks 5 | . 5 Robot Analysis 2 | . 2 Zone Layout 3 | . 3 Fabricator Hacks . | . . Repair Station Hacks . | . . Recycling Unit Hacks . | . . Scanalyzer . | . . Garrison Access Hacks . | . . Unauthorized Hacks 4 | . 4 Terminals 3 | . 3 Botnet 3 | . 3 Fabricators . | . . Repair Stations . | . . Recycling Units 1 | . 1 Tunnel 1 | . 1 Scanalyzers . | . . Garrison Access . | . . Data Cores Recovered . | . . Used . | . . Hacking Detections 4 | . 4 Full Trace Events 4 | . 4 Feedback Events . | . . Feedback Blocked . | . . Robot Schematics Acquired . | . . Robots Built . | . . Authchips . | . . Time . | . . Total Robot Build Rating . | . . Part Schematics Acquired . | . . Parts Built . | . . Authchips . | . . Time . | . . Total Part Build Rating . | . . Parts Repaired . | . . Time . | . . Parts Recycled . | . . Recycled Matter . | . . Retrieved Matter . | . . Retrieved Components . | . . Parts Scanalyzed . | . . Part Schematics Acquired . | . . Parts Damaged . | . . Bothacking | -11 -10 ------------ Run | Yrd Mat Used RIF Installer . | . . Robots Hacked . | . . Non-combat . | . . Combat . | . . Robot Hacks Applied . | . . Relay Couplers Released . | . . Fabnet Peak Effective % . | . . Robots Rewired . | . . Allies Hacked . | . . Hacks Repelled . | . . Allies | -11 -10 -------- Run | Yrd Mat Total Allies . | . . Largest Group . | . . Highest-Rated Group . | . . Highest-Rated Ally . | . . Total Orders . | . . Ally Attacks . | . . Total Damage . | . . Kills . | . . Allies Corrupted . | . . Allies Melted . | . . Intel | -11 -10 ------- Run | Yrd Mat Active Infowar (turns) 474 | 3 471 Sensors 241 | . 241 Structural 29 | . 29 Seismic 232 | 3 229 Robot Analysis Total 2 | . 2 Derelict Logs Recovered . | . . Drone Launches . | . . Drone Recoveries . | . . Exploration | -11 -10 ------------- Run | Yrd Mat Turns Passed 604 | 75 529 Spaces Moved 478 | 35 443 Core 309 | 7 302 Treads . | . . Legs 169 | 28 141 Wheels . | . . Hover . | . . Flight . | . . Fastest Speed 50 | 50 50 Average Speed 74 | 108 72 Slowest Speed 120 | 120 120 Overloaded Moves . | . . Propulsion Burnouts . | . . Robots Hopped . | . . Potential Cave-ins . | . . Cave-ins Triggered . | . . Exploration Rate (%) 42 | 4 81 Regions Visited 1 Branch Regions . Pre-discovered Areas 1 | . 1 Known Exits Taken . | . . Unknown Exits Taken 1 | 1 . Scrap Searched . | . . Spaces Dug . | . . Terrain Destroyed . | . . Melee . | . . Projectile . | . . AOE . | . . Terrain Rammed . | . . Walls Destroyed . | . . Machines Disabled . | . . Actions | -11 -10 --------- Run | Yrd Mat Total 683 | 52 631 Wait 167 | . 167 Move 477 | 34 443 Hop . | . . Pick Up 3 | 1 2 Fast Attach 9 | 7 2 Attach 1 | . 1 Detach . | . . Swap . | . . Drop 1 | 1 . Fire 20 | 9 11 Melee . | . . Ram 5 | . 5 Kick . | . . Crush . | . . Escape Stasis . | . . Rewire . | . . Trap . | . . Miscellaneous . | . . Route ------- -11/Scrapyard -10/Materials (discovered 3 exits: [*Mat x2] / [*Min]) History --------- Turn | Location | Event 19 | -11/Scrapyard | Discovered new exit (range 15) 76 | -11/Scrapyard | Entered Materials 199 | -10/Materials | Discovered new exit (range 16) 303 | -10/Materials | Build established: Mutant 305 | -10/Materials | Released all parts (7) 338 | -10/Materials | Discovered new exit (range 10) 365 | -10/Materials | Core integrity fell below 50% 416 | -10/Materials | Discovered new exit (range 10) 582 | -10/Materials | Core integrity fell below 20% 605 | -10/Materials | Destroyed by G-34 Mercenary with Small Laser Last Messages --------------- Trojan loaded successfully. Testing... Terminal linked with 2 systems. Awaiting botnet instructions. >>Layout(Zone) Retrieving Zone 8F layout... Downloaded map data. 00569_ Connecting with Terminal... >>Layout(Zone) Retrieving Zone 7Z layout... Downloaded map data. 00569_ ALERT: Suspicious activity at Terminal M004. Dispatching Investigation squad. 00575_ Sensor Array destroyed. 00577_ Slammed into G-34 Mercenary. 00577_ Destabilizing: System corrupted (+1). 00578_ Slammed into G-34 Mercenary. 00580_ System corrupted: Component data lost. 00580_ Slammed into G-34 Mercenary. 00585_ W-16 Scout sends out distress signal. Map ----- +----------------------------------------------------+ | # ! # "" #?????????? | | # + ## #??? | | # """ """ # ## #??? | | # """ """ ###+#########/## ##### ########??? | | # """ """ ## # ## #???# ##????????? | | # ## | # ## #??? #????????? | | ?#######+### # ## #??? #????????? | | ???????# #?# " # + #??? #????????? | | ???????# #?# T # ## ##"" < #????????? | | ######?# ### " # ### #### #????????? | | #?# + # #?# #??#"" #????????? | | """ #?# #####+# #?# #??#" #????????? | | """ ### ##### #############/####### ########### | | """ # ### ##?##### % # # # | | # ### # * # """ """%%# + # | | """ + " # # """"""""" # # # | | """ # ### # # """"" " # # """ # | | """ # ### # # # # """ # | | ######### + ###########+## # "Y" """ # | | / ## ! # # #### % # """ # | | ! ## # ########### r / # | | ## """ + t "T" ########### | | ####### """ # # """ ########### | | ?????## """ ]# """ # """ ## T | | ?????## # """ !!# """ ## """ "" | | ?????######### """ !!!#@ ## """ "" | | ?????###????## !!!# ## """ "" | | ???????####### # """g """ # | | ???????####### # """ """ ########## | | ???????## # g """ """ + | | ?????#### # g #### | | ?????# # # #??# | | ?????## ### ### ###+#########+###### | | ?????## # ## ####### # ## | | ?????#### < ### ####### # ## | | ?????#### ### ####????# # ## | | ???????#############????# !! # ## | | ???????###########??????# !! """ # ######## | | ????????????????????????# ! """ # """ #??????? | | ????????????????????????# """ # """ #??????? | | ????????????????????????# ! ??# """ #??????? | | ????????????????????????########??# #??????? | | ??????????????????????????????????# #??????? | | ??????????????????????????????????# #??????? | | ??????????????????????????????????###????##??????? | | ?????????????????????????????????????????????????? | | | | | | | | | +----------------------------------------------------+ Best States ------------- Heat Dissipation 35 Energy Generation 10 Energy Capacity 125 Matter Stores 117 Matter Capacity 300 Sight Range 16 Robot Scan Range 14 Terrain Scan Density 10 Evasion (%) 55 Item Schematics ----------------- None Robot Schematics ------------------ None Fabricated ------------ Nothing Repaired ---------- Nothing Alien Tech Used ----------------- None Achievements -------------- None Challenges ------------ None Game ------ Seed BarrageComponentPurifier Manual? 0 Play Time 00:14:41 Cumulative 67.2 hours Start 2025.05.17 @ 14:24:18 End 2025.05.17 @ 14:32:22 Sessions 1 Manual Loads 0 Difficulty Rogue Special Mode None Game No. 112 Rogue 112 Adventurer 0 Explorer 0 Win Type - Total 0 Types 0/0/0/0/0/0/0/0/0/0 Lore% 29 Gallery% 38 Achievement% 35 Wizard Run 0 Options --------- Layout 0 ASCII 0 Keyboard 0 Movement Mouse Keybinds 0 Fullscreen 2 Font 18/SmallcapsGlow Map View 38x25 Zoom Use 100% Tactical HUD 1 Map Filters NONE Filters NONE Steam 1 RUN: df35e877-6ae5-446c-a84a-ad7f77137f08